fUST/lending_fUST_20240720
["ID","MTS","AMOUNT","RATE_DAILY","PERIOD"]
[332679796,1721430643956,-536.82,0.00016438,2]
[332679797,1721430643966,-536.82,0.00016438,2]
[332679798,1721430643975,-536.82,0.00016438,2]
[332679799,1721430643984,-536.82,0.00016438,2]
[332679800,1721430643993,-500.0,0.00016438,2]
[332679801,1721430644002,-536.82,0.00016438,2]
[332679802,1721430644011,-536.82,0.00016438,2]
[332679803,1721430644020,-536.82,0.00016438,2]
[332679804,1721430644029,-536.82,0.00016438,2]
[332679805,1721430644038,-536.82,0.00016438,2]
[332679806,1721430644047,-536.82,0.00016438,2]
[332679807,1721430644056,-536.85359652,0.00016438,2]
[332679808,1721430644065,-500.0,0.00016438,2]
[332679809,1721430644090,-500.0,0.00016438,2]
[332679810,1721430644099,-500.0,0.00016438,2]
[332679811,1721430644109,-500.0,0.00016438,2]
[332679813,1721430644119,-923.59,0.00016438,2]
[332679814,1721430644129,-500.0,0.00016438,2]
[332679817,1721430644138,-500.0,0.00016438,2]
[332679821,1721430644148,-505.6,0.00016438,2]
[332679823,1721430644158,-500.0,0.00016438,2]
[332679826,1721430644167,-500.0,0.00016438,2]
[332679830,1721430644177,-500.0,0.00016438,2]
[332679833,1721430644187,-2509.13,0.00016438,2]
[332679836,1721430644198,-633.87645541,0.00016438,2]
[332679838,1721430644210,-505.00026679,0.00016438,2]
[332679839,1721430644221,-1931.21,0.00016438,2]
[332679840,1721430644230,-660.88,0.00016438,2]
[332679841,1721430644240,-551.14,0.00016438,2]
[332679842,1721430644249,-502.95656582,0.00016438,2]
[332679843,1721430644259,-500.0,0.00016438,2]
[332679844,1721430644268,-4099.68,0.00016438,2]
[332679845,1721430644277,-1413.96,0.00016438,2]
[332679846,1721430644287,-500.0,0.00016438,2]
[332679847,1721430644297,-2181.29,0.00016438,2]
[332679848,1721430644306,-1570.39,0.00016438,2]
[332679849,1721430644315,-500.0,0.00016438,2]
[332679850,1721430644325,-500.0,0.00016438,2]
[332679851,1721430644334,-500.0,0.00016438,2]
[332679852,1721430644343,-1838.14,0.00016438,2]
[332679853,1721430644352,-500.0,0.00016438,2]
[332679854,1721430644362,-2248.62,0.00016438,2]
[332679855,1721430644372,-500.0,0.00016438,2]
[332679856,1721430644382,-500.0,0.00016438,2]
[332679857,1721430644391,-641.07583073,0.00016438,2]
[332679858,1721430644400,-500.0,0.00016438,2]
[332679859,1721430644410,-500.0,0.00016438,2]
[332679860,1721430644420,-500.0,0.00016438,2]
[332679861,1721430644429,-500.0,0.00016438,2]
[332679862,1721430644440,-500.0,0.00016438,2]
[332679863,1721430644450,-579.34,0.00016438,2]
[332679864,1721430644459,-578.92,0.00016438,2]
[332679865,1721430644468,-539.0,0.00016438,2]
[332679866,1721430644477,-500.0,0.00016438,2]
[332679867,1721430644487,-500.0,0.00016438,2]
[332679868,1721430644496,-592.03038044,0.00016438,2]
[332679869,1721430644505,-500.00313708,0.00016438,2]
[332679870,1721430644514,-500.0,0.00016438,2]
[332679871,1721430644524,-500.0,0.00016438,2]
[332679872,1721430644534,-500.0,0.00016438,2]
[332679873,1721430644543,-500.0,0.00016438,2]
[332679874,1721430644552,-523.4052699,0.00016438,2]
[332679875,1721430644561,-500.0,0.00016438,2]
[332679876,1721430644571,-406.22538627,0.00016438,2]
[332679877,1721430644580,-1138.0,0.00016438,2]
[332679878,1721430644589,-500.0,0.00016438,2]
[332679879,1721430644598,-500.0,0.00016438,2]
[332679880,1721430644608,-513.81,0.00016438,2]
[332679881,1721430644617,-500.0,0.00016438,2]
[332679882,1721430644626,-500.0,0.00016438,2]
[332679883,1721430644635,-500.0,0.00016438,2]
[332679884,1721430644645,-500.0,0.00016438,2]
[332679885,1721430644654,-858.32,0.00016438,2]
[332679886,1721430644664,-500.0,0.00016438,2]
[332679887,1721430644673,-500.0,0.00016438,2]
[332679888,1721430644682,-542.52,0.00016438,2]
[332679889,1721430644692,-1591.29,0.00016438,2]
[332679890,1721430644701,-1228.87,0.00016438,2]
[332679891,1721430644710,-500.0,0.00016438,2]
[332679892,1721430644720,-530.72723451,0.00016438,2]
[332679893,1721430644729,-500.0,0.00016438,2]
[332679894,1721430644738,-500.0,0.00016438,2]
[332679895,1721430644747,-947.45,0.00016438,2]
[332679896,1721430644756,-1039.67,0.00016438,2]
[332679897,1721430644765,-2029.06,0.00016438,2]
[332679898,1721430644775,-508.95478055,0.00016438,2]
[332679899,1721430644784,-1084.78,0.00016438,2]
[332679900,1721430644794,-500.0,0.00016438,2]
[332679901,1721430644803,-2256.17,0.00016438,2]
[332679902,1721430644812,-1148.34,0.00016438,2]
[332679903,1721430644821,-211.69137716,0.00016438,2]
[332679904,1721430644830,-500.0,0.00016438,2]
[332679905,1721430644839,-809.17,0.00016438,2]
[332679906,1721430644849,-500.0,0.00016438,2]
[332679907,1721430644860,-685.46,0.00016438,2]
[332679908,1721430644870,-1040.88,0.00016438,2]
[332679909,1721430644879,-500.0,0.00016438,2]
[332679910,1721430644888,-500.0,0.00016438,2]
[332679911,1721430644898,-789.33,0.00016438,2]
[332679912,1721430644907,-500.0,0.00016438,2]
[332679913,1721430644916,-500.0,0.00016438,2]
[332679914,1721430644926,-652.34,0.00016438,2]
[332679915,1721430644937,-500.0,0.00016438,2]
[332679916,1721430644946,-500.0,0.00016438,2]
[332679917,1721430644955,-1331.85,0.00016438,2]
[332679918,1721430644964,-500.0,0.00016438,2]
[332679919,1721430644973,-592.91,0.00016438,2]
[332679920,1721430644981,-301.2515248,0.00016438,2]
[332679921,1721430644990,-340.63638274,0.00016438,2]
[332679922,1721430644999,-500.0,0.00016438,2]
[332679923,1721430645009,-151.0,0.00016438,2]
[332679924,1721430645018,-500.0,0.00016438,2]
[332679925,1721430645029,-151.0,0.00016438,2]
[332679926,1721430645038,-151.0,0.00016438,2]
[332679927,1721430645047,-777.08,0.00016438,2]
[332679928,1721430645057,-607.66,0.00016438,2]
[332679929,1721430645066,-638.76155097,0.00016438,2]
[332679930,1721430645076,-500.0,0.00016438,2]
[332679931,1721430645085,-500.0,0.00016438,2]
[332679932,1721430645094,-500.0,0.00016438,2]
[332679933,1721430645104,-703.26,0.00016438,2]
[332679934,1721430645113,-7415.56,0.00016438,2]
[332679935,1721430645122,-500.0,0.00016438,2]
[332679936,1721430645131,-500.0,0.00016438,2]
[332679937,1721430645141,-500.0,0.00016438,2]
[332679938,1721430645150,-504.53,0.00016438,2]
[332679939,1721430645160,-500.0,0.00016438,2]
[332679940,1721430645170,-2898.69,0.00016438,2]
[332679941,1721430645179,-1370.47,0.00016438,2]
[332679942,1721430645190,-759.11,0.00016438,2]
[332679943,1721430645200,-607.91,0.00016438,2]
[332679944,1721430645209,-825.13,0.00016438,2]
[332679945,1721430645218,-500.0,0.00016438,2]
[332679946,1721430645228,-500.0,0.00016438,2]
[332679947,1721430645237,-512.12401173,0.00016438,2]
[332679948,1721430645247,-151.0,0.00016438,2]
[332679949,1721430645256,-500.0,0.00016438,2]
[332679950,1721430645266,-151.0,0.00016438,2]
[332679951,1721430645275,-160.581991,0.00016438,2]
[332679952,1721430645284,-181.73194964,0.00016438,2]
[332679953,1721430645293,-500.0,0.00016438,2]
[332679954,1721430645303,-4367.22,0.00016438,2]
[332679955,1721430645312,-1085.44,0.00016438,2]
[332679956,1721430645322,-2593.37,0.00016438,2]
[332679957,1721430645331,-500.0,0.00016438,2]
[332679958,1721430645340,-500.0,0.00016438,2]
[332679959,1721430645350,-1020.55,0.00016438,2]
[332679960,1721430645359,-500.0,0.00016438,2]
[332679961,1721430645368,-500.0,0.00016438,2]
[332679962,1721430645379,-1000.0,0.00016438,2]
[332679963,1721430645388,-500.0,0.00016438,2]
[332679964,1721430645398,-602.73,0.00016438,2]
[332679965,1721430645408,-500.0,0.00016438,2]
[332679966,1721430645418,-550.01,0.00016438,2]
[332679967,1721430645428,-500.0,0.00016438,2]
[332679968,1721430645440,-2647.3,0.00016438,2]
[332679969,1721430645449,-304.52821197,0.00016438,2]
[332679970,1721430645477,-200.84656339,0.00016438,2]
[332679971,1721430645487,-400.92147441,0.00016438,2]
[332679972,1721430645501,-99.07852559,0.00016438,2]
[332679973,1721430645511,-500.0,0.00016438,2]
[332679974,1721430645522,-10562.5,0.00016438,2]
[332679975,1721430645532,-6.9838195,0.00016438,2]
[332679976,1721430645543,-5592.6161805,0.00016438,2]
[332679977,1721430645553,-3346.42,0.00016438,2]
[332679978,1721430645562,-1781.3,0.00016438,2]
[332679979,1721430645572,-648.84,0.00016438,2]
[332679980,1721430645581,-1274.44,0.00016438,2]
[332679981,1721430645591,-500.0,0.00016438,2]
[332679982,1721430645600,-500.0,0.00016438,2]
[332679983,1721430645609,-500.0,0.00016438,2]
[332679984,1721430645619,-684.87,0.00016438,2]
[332679985,1721430645628,-500.0,0.00016438,2]
[332679986,1721430645638,-1636.85,0.00016438,2]
[332679987,1721430645647,-676.53,0.00016438,2]
[332679988,1721430645657,-747.83,0.00016438,2]
[332679989,1721430645666,-1120.12,0.00016438,2]
[332679990,1721430645675,-500.0,0.00016438,2]
[332679991,1721430645685,-2609.53452099,0.00016438,2]
[332680011,1721430646924,-975.00547901,0.00016438,2]
[332680012,1721430646936,-500.0,0.00016438,2]
[332680013,1721430646946,-1401.55,0.00016438,2]
[332680014,1721430646956,-500.0,0.00016438,2]
[332680015,1721430646965,-500.0,0.00016438,2]
[332680016,1721430646975,-1417.87,0.00016438,2]
[332680017,1721430646985,-2411.49,0.00016438,2]
[332680018,1721430646995,-1459.24,0.00016438,2]
[332680019,1721430647004,-427.41033267,0.00016438,2]
[332680020,1721430647014,-509.36,0.00016438,2]
[332680021,1721430647024,-500.0,0.00016438,2]
[332680022,1721430647033,-890.46,0.00016438,2]
[332680023,1721430647043,-2493.37,0.00016438,2]
[332680024,1721430647053,-2493.37,0.00016438,2]
[332680025,1721430647062,-2493.37,0.00016438,2]
[332680026,1721430647072,-2493.37,0.00016438,2]
[332680027,1721430647081,-654.41,0.00016438,2]
[332680028,1721430647090,-2493.37,0.00016438,2]
[332680029,1721430647099,-427.41003358,0.00016438,2]
[332680030,1721430647108,-2493.37,0.00016438,2]
[332680031,1721430647117,-2493.37,0.00016438,2]
[332680032,1721430647127,-2493.37,0.00016438,2]
[332680033,1721430647136,-2493.37,0.00016438,2]
[332680034,1721430647145,-2493.37,0.00016438,2]
[332680035,1721430647155,-2493.37,0.00016438,2]
[332680036,1721430647164,-2493.37,0.00016438,2]
[332680037,1721430647174,-2493.37,0.00016438,2]
[332680038,1721430647184,-2493.37,0.00016438,2]
[332680039,1721430647193,-655.72,0.00016438,2]
[332680040,1721430647202,-500.0,0.00016438,2]
[332680041,1721430647212,-2493.37,0.00016438,2]
[332680042,1721430647221,-2493.37,0.00016438,2]
[332680043,1721430647229,-2493.37,0.00016438,2]
[332680044,1721430647239,-2493.37,0.00016438,2]
[332680045,1721430647249,-548.82,0.00016438,2]
[332680046,1721430647258,-500.0,0.00016438,2]
[332680047,1721430647268,-9498.06,0.00016438,2]
[332680048,1721430647277,-700.99,0.00016438,2]
[332680049,1721430647287,-500.0,0.00016438,2]
[332680050,1721430647296,-2193.05,0.00016438,2]
[332680051,1721430647305,-500.0,0.00016438,2]
[332680052,1721430647314,-500.0,0.00016438,2]
[332680053,1721430647324,-1650.45,0.00016438,2]
[332680054,1721430647333,-1611.16,0.00016438,2]
[332680055,1721430647342,-500.0,0.00016438,2]
[332680056,1721430647351,-2922.54,0.00016438,2]
[332680057,1721430647360,-560.87,0.00016438,2]
[332680058,1721430647370,-1792.45,0.00016438,2]
[332680059,1721430647380,-4330.14,0.00016438,2]
[332680060,1721430647389,-500.0,0.00016438,2]
[332680061,1721430647399,-500.0,0.00016438,2]
[332680062,1721430647408,-253.64818551,0.00016438,2]
[332680063,1721430647418,-500.0,0.00016438,2]
[332680064,1721430647429,-757.02,0.00016438,2]
[332680065,1721430647440,-3149.5,0.00016438,2]
[332680066,1721430647451,-1458.17,0.00016438,2]
[332680067,1721430647464,-500.0,0.00016438,2]
[332680068,1721430647473,-500.0,0.00016438,2]
[332680069,1721430647483,-911.33,0.00016438,2]
[332680070,1721430647492,-500.0,0.00016438,2]
[332680071,1721430647502,-3230.76,0.00016438,2]
[332680072,1721430647512,-500.0,0.00016438,2]
[332680073,1721430647522,-530.75,0.00016438,2]
[332680074,1721430647531,-500.0,0.00016438,2]
[332680075,1721430647540,-566.02,0.00016438,2]
[332680076,1721430647550,-500.0,0.00016438,2]
[332680077,1721430647561,-510.06,0.00016438,2]
[332680078,1721430647571,-20172.31,0.00016438,2]
[332680079,1721430647580,-500.0,0.00016438,2]
[332680080,1721430647591,-500.0,0.00016438,2]
[332680081,1721430647602,-2572.38,0.00016438,2]
[332680082,1721430647612,-500.0,0.00016438,2]
[332680083,1721430647622,-6109.51,0.00016438,2]
[332680084,1721430647632,-605.26318578,0.00016438,2]
[332680085,1721430647641,-701.83,0.00016438,2]
[332680086,1721430647650,-500.0,0.00016438,2]
[332680087,1721430647659,-867.12,0.00016438,2]
[332680088,1721430647668,-3996.67,0.00016438,2]
[332680089,1721430647677,-500.0,0.00016438,2]
[332680090,1721430647688,-500.0,0.00016438,2]
[332680091,1721430647699,-553.74,0.00016438,2]
[332680092,1721430647709,-6383.08,0.00016438,2]
[332680093,1721430647719,-3518.62,0.00016438,2]
[332680094,1721430647729,-1267.7,0.00016438,2]
[332680095,1721430647739,-539.35,0.00016438,2]
[332680096,1721430647749,-500.0,0.00016438,2]
[332680097,1721430647759,-610.73089826,0.00016438,2]
[332680098,1721430647771,-961.47,0.00016438,2]
[332680099,1721430647780,-500.0,0.00016438,2]
[332680100,1721430647789,-8303.26,0.00016438,2]
[332680101,1721430647799,-1643.41,0.00016438,2]
[332680102,1721430647809,-500.0,0.00016438,2]
[332680103,1721430647820,-1384.56,0.00016438,2]
[332680104,1721430647829,-500.0,0.00016438,2]
[332680105,1721430647839,-500.0,0.00016438,2]
[332680106,1721430647849,-3788.58,0.00016438,2]
[332680107,1721430647859,-1998.28,0.00016438,2]
[332680108,1721430647872,-500.0,0.00016438,2]
[332680109,1721430647881,-988.32,0.00016438,2]
[332680110,1721430647891,-500.0,0.00016438,2]
[332680111,1721430647903,-500.0,0.00016438,2]
[332680112,1721430647913,-2653.6,0.00016438,2]
[332680113,1721430647923,-1041.68,0.00016438,2]
[332680114,1721430647934,-527.83,0.00016438,2]
[332680115,1721430647945,-13916.67,0.00016438,2]
[332680116,1721430647955,-500.0,0.00016438,2]
[332680117,1721430647964,-500.0,0.00016438,2]
[332680118,1721430647974,-444.51585009,0.00016438,2]
[332680119,1721430647983,-500.0,0.00016438,2]
[332680120,1721430647993,-833.68,0.00016438,2]
[332680121,1721430648003,-500.0,0.00016438,2]
[332680122,1721430648012,-500.0,0.00016438,2]
[332680123,1721430648023,-500.0,0.00016438,2]
[332680124,1721430648033,-558.0,0.00016438,2]
[332680125,1721430648043,-500.0,0.00016438,2]
[332680126,1721430648053,-2762.93,0.00016438,2]
[332680127,1721430648063,-500.0,0.00016438,2]
[332680128,1721430648073,-500.0,0.00016438,2]
[332680129,1721430648082,-500.0,0.00016438,2]
[332680130,1721430648092,-500.0,0.00016438,2]
[332680131,1721430648104,-500.0,0.00016438,2]
[332680132,1721430648114,-500.0,0.00016438,2]
[332680133,1721430648125,-500.0,0.00016438,2]
[332680134,1721430648135,-500.0,0.00016438,2]
[332680135,1721430648144,-500.0,0.00016438,2]
[332680136,1721430648154,-500.0,0.00016438,2]
[332680137,1721430648164,-500.0,0.00016438,2]
[332680138,1721430648173,-500.0,0.00016438,2]
[332680139,1721430648184,-500.0,0.00016438,2]
[332680140,1721430648193,-531.04,0.00016438,2]
[332680141,1721430648202,-500.0,0.00016438,2]
[332680142,1721430648212,-1299.73,0.00016438,2]
[332680143,1721430648221,-1456.3,0.00016438,2]
[332680144,1721430648231,-500.0,0.00016438,2]
[332680145,1721430648240,-500.60414631,0.00016438,2]
[332680146,1721430648250,-516.5,0.00016438,2]
[332680147,1721430648260,-500.0,0.00016438,2]
[332680148,1721430648270,-545.3,0.00016438,2]
[332680149,1721430648279,-500.0,0.00016438,2]
[332680150,1721430648289,-618.54,0.00016438,2]
[332680151,1721430648300,-1725.84,0.00016438,2]
[332680152,1721430648311,-532.91,0.00016438,2]
[332680153,1721430648321,-3097.04,0.00016438,2]
[332680154,1721430648331,-500.0,0.00016438,2]
[332680155,1721430648342,-500.0,0.00016438,2]
[332680156,1721430648351,-1443.74,0.00016438,2]
[332680157,1721430648361,-500.0,0.00016438,2]
[332680158,1721430648371,-500.0,0.00016438,2]
[332680159,1721430648381,-500.0,0.00016438,2]
[332680160,1721430648391,-925.73,0.00016438,2]
[332680161,1721430648401,-4079.9,0.00016438,2]
[332680162,1721430648411,-500.0,0.00016438,2]
[332680163,1721430648422,-1746.05,0.00016438,2]
[332680164,1721430648433,-500.0,0.00016438,2]
[332680165,1721430648442,-617.70578733,0.00016438,2]
[332680166,1721430648452,-500.0,0.00016438,2]
[332680167,1721430648462,-500.0,0.00016438,2]
[332680168,1721430648472,-1227.98,0.00016438,2]
[332680169,1721430648482,-1227.98,0.00016438,2]
[332680170,1721430648491,-1227.98,0.00016438,2]
[332680171,1721430648501,-1227.98,0.00016438,2]
[332680172,1721430648511,-500.0,0.00016438,2]
[332680173,1721430648521,-1227.98,0.00016438,2]
[332680174,1721430648532,-544.27604735,0.00016438,2]
[332680175,1721430648543,-1227.98,0.00016438,2]
[332680176,1721430648552,-500.0,0.00016438,2]
[332680177,1721430648563,-1227.98,0.00016438,2]
[332680178,1721430648572,-1227.98,0.00016438,2]
[332680179,1721430648582,-1227.98,0.00016438,2]
[332680180,1721430648592,-1227.98,0.00016438,2]
[332680181,1721430648602,-1227.98,0.00016438,2]
[332680182,1721430648612,-1227.98,0.00016438,2]
[332680183,1721430648623,-1227.98,0.00016438,2]
[332680184,1721430648632,-3466.47,0.00016438,2]
[332680185,1721430648643,-487.98330596,0.00016438,2]
[332680186,1721430811089,153.12,0.000224,31]
[332680187,1721430811148,153.12,0.000224,31]
[332680188,1721430811227,153.12,0.000224,31]
[332680189,1721430811529,153.12,0.000224,31]
[332680192,1721431412948,153.16,0.000224,31]
[332680193,1721431413009,153.16,0.000224,31]
[332680194,1721431413069,153.16,0.000224,31]
[332680195,1721431413121,153.16,0.000224,31]
[332680196,1721431549164,-947.42215486,0.00014278,2]
[332680197,1721431578126,184.91,0.00010959,2]
[332680198,1721431588604,154.09,0.00010959,2]
[332680199,1721431599389,770.48,0.00010959,2]
[332680200,1721431605359,-207.29693414,0.00014278,2]
[332680201,1721431634104,-615.8047231,0.00014278,2]
[332680202,1721431634126,-2455.0793669,0.00014417,2]
[332680203,1721431636204,-500.0,0.00014417,2]
[332680204,1721431637109,-67.1345365,0.00014417,2]
[332680205,1721431637134,-250.0,0.00014456,2]
[332680206,1721431637159,-18.47831621,0.00014496,2]
[332680207,1721431638115,-231.52168379,0.00014496,2]
[332680208,1721431638143,-250.0,0.00014536,2]
[332680209,1721431638168,-250.0,0.00014575,2]
[332680210,1721431638194,-18.47831621,0.00014615,2]
[332680211,1721431649175,-166.666668,0.00014615,2]
[332680212,1721431650346,-64.85501579,0.00014615,2]
[332680213,1721431650372,-250.0,0.00014655,2]
[332680214,1721431650397,-250.0,0.00014694,2]
[332680215,1721431650420,-250.0,0.00014734,2]
[332680216,1721431650448,-250.0,0.00014774,2]
[332680217,1721431650470,-166.666666,0.00014795,2]
[332680218,1721431650493,-250.0,0.00014813,2]
[332680219,1721431650516,-161.17604007,0.00014853,2]
[332680220,1721431653114,-88.82395993,0.00014853,2]
[332680221,1721431653141,-243.41881574,0.00014893,2]
[332680222,1721431654109,-6.58118426,0.00014893,2]
[332680223,1721431654133,-250.0,0.00014932,2]
[332680224,1721431654163,-250.0,0.00014972,2]
[332680225,1721431654189,-250.0,0.00015011,2]
[332680226,1721431654215,-250.0,0.00015051,2]
[332680227,1721431654243,-250.0,0.00015091,2]
[332680228,1721431654269,-250.0,0.0001513,2]
[332680229,1721431654298,-250.0,0.0001517,2]
[332680230,1721431654325,-250.0,0.0001521,2]
[332680231,1721431654349,-300.0,0.0001521,2]
[332680232,1721431654374,-306.0,0.0001589,2]
[332680233,1721431654398,-154.88921117,0.00016159,2]
[332680234,1721431654423,-145.92170037,0.00016197,2]
[332680284,1721431832949,-1479.6342951,0.00015209,2]
[332680285,1721431832961,-11331.01649222,0.00016038,2]
[332680295,1721431838894,-215.952015,0.00015303,2]
[332680296,1721431838905,-215.952015,0.00015345,2]
[332680297,1721431838915,-215.952015,0.00015387,2]
[332680298,1721431838925,-215.952015,0.00015429,2]
[332680299,1721431838935,-215.952015,0.00015471,2]
[332680300,1721431838945,-215.952015,0.00015513,2]
[332680301,1721431838955,-30971.87825242,0.00016038,2]
[332680302,1721431838964,-300.0,0.00016064,2]
[332680303,1721431838974,-402.05223661,0.00016064,2]
[332680304,1721431838984,-315.07220348,0.00016064,2]
[332680311,1721431841116,-215.952015,0.00015555,2]
[332680312,1721431841128,-215.952015,0.00015597,2]
[332680313,1721431841138,-215.952015,0.00015639,2]
[332680314,1721431841147,-215.952015,0.00015681,2]
[332680315,1721431841157,-215.952015,0.00015723,2]
[332680316,1721431841167,-215.952015,0.00015765,2]
[332680317,1721431841178,-215.952015,0.00015807,2]
[332680318,1721431841188,-184.92779652,0.00016064,2]
[332680319,1721431841199,-356.72066227,0.00016064,2]
[332680320,1721431841212,-40000.0,0.00016065,2]
[332680321,1721431841223,-3100.57389255,0.0001611,2]
[332680322,1721431841234,-544.15753876,0.00016159,2]
[332680323,1721431841246,-411.2984392,0.00016273,2]
[332680324,1721431841257,-1557.35406207,0.00016327,2]
[332680325,1721431841268,-736.75996205,0.00016328,2]
[332680326,1721431841278,-302.50508509,0.00016338,2]
[332680327,1721431841288,-2255.16074976,0.00016338,2]
[332680328,1721431841298,-2000.0,0.00016338,2]
[332680329,1721431841309,-215.13558202,0.00016347,2]
[332680330,1721431841323,-4302.54083148,0.00016356,2]
[332680331,1721431841332,-40000.0,0.00016373,2]
[332680332,1721431841343,-3175.18226903,0.00016398,2]
[332680333,1721431841352,-500.0,0.00016427,2]
[332680334,1721431841363,-320.93638425,0.00016427,2]
[332680335,1721431841372,-173.35805726,0.00016427,2]
[332680336,1721431841384,-625.85506845,0.00016427,2]
[332680337,1721431841393,-313.84743104,0.00016427,2]
[332680338,1721431841404,-500.0,0.00016427,2]
[332680339,1721431841415,-450.64260034,0.00016427,2]
[332680340,1721431841425,-500.0,0.00016427,2]
[332680341,1721431841435,-500.0,0.00016427,2]
[332680342,1721431841445,-439.5139186,0.00016427,2]
[332680343,1721431841455,-500.0,0.00016427,2]
[332680344,1721431841465,-500.0,0.00016427,2]
[332680345,1721431841474,-500.0,0.00016427,2]
[332680346,1721431841484,-632.95607572,0.00016427,2]
[332680347,1721431841497,-500.0,0.00016427,2]
[332680348,1721431841508,-500.0,0.00016427,2]
[332680349,1721431841519,-500.0,0.00016427,2]
[332680350,1721431841531,-621.70397158,0.00016427,2]
[332680351,1721431841542,-500.0,0.00016427,2]
[332680352,1721431841552,-500.0,0.00016427,2]
[332680353,1721431841561,-459.62999757,0.00016427,2]
[332680354,1721431841571,-268.22360076,0.00016427,2]
[332680355,1721431841581,-211859.0245833,0.00016428,2]
[332680378,1721431847536,-215.952015,0.00015849,2]
[332680379,1721431847546,-109.38661709,0.00015891,2]
[332680392,1721431867196,165.405663,0.00010959,2]
[332680393,1721431867219,653.854337,0.00010959,2]
[332680394,1721431935734,346.145663,0.00010959,2]
[332680395,1721431935755,153.0,0.00010959,2]
[332680396,1721431935776,151.0,0.00010959,2]
[332680397,1721431935798,69.86979652,0.00010959,2]
[332680398,1721431983710,201.18502105,0.00010959,2]
[332680399,1721432014278,153.24,0.000224,31]
[332680400,1721432014349,153.24,0.000224,31]
[332680401,1721432014703,153.24,0.000224,31]
[332680402,1721432014774,153.24,0.000224,31]
[332680404,1721432125580,1513.05154489,0.000224,30]
[332680406,1721432404231,3204.7,0.0002245,30]
[332680408,1721432754135,-250.0,0.00014417,2]
[332680409,1721432754159,-166.666666,0.00014795,2]
[332680410,1721432754182,-167.277994,0.00014988,2]
[332680411,1721432754206,-167.277994,0.0001503,2]
[332680412,1721432754230,-157.46814309,0.00015071,2]
[332680413,1721432825102,-750.0,0.00014475,2]
[332680414,1721432832100,-896.08279423,0.00014475,2]
[332680415,1721432836104,-236.65330147,0.00014475,2]
[332680416,1721432836128,-9.80985091,0.00015071,2]
[332680417,1721432836152,-167.277994,0.00015112,2]
[332680418,1721432836175,-167.277994,0.00015153,2]
[332680419,1721432836198,-167.277994,0.00015194,2]
[332680420,1721432836223,-167.277994,0.00015235,2]
[332680421,1721432836247,-167.277994,0.00015276,2]
[332680422,1721432836269,-167.277994,0.00015317,2]
[332680423,1721432836290,-167.277994,0.00015358,2]
[332680424,1721432836311,-128.59401092,0.00015399,2]
[332680425,1721432837100,-38.68398308,0.00015399,2]
[332680426,1721432837124,-167.277994,0.00015441,2]
[332680427,1721432837146,-167.277994,0.00015482,2]
[332680428,1721432837170,-167.277994,0.00015523,2]
[332680429,1721432837192,-167.277994,0.00015564,2]
[332680430,1721432837215,-167.277994,0.00015605,2]
[332680431,1721432837236,-646.8757661,0.00015624,2]
[332680432,1721432837259,-167.277994,0.00015646,2]
[332680433,1721432837281,-167.277994,0.00015687,2]
[332680434,1721432837302,-300.0,0.00015708,2]